bitfinex-derivatives/quotes_BTCF0:USTF0_20250629
["timestamp","ask_amount","ask_price","bid_price","bid_amount"]
[1751237914825,0.2286159,108170.0,108160.0,1.53758289]
[1751237916926,0.43155951,108170.0,108160.0,1.33463928]
[1751237917225,0.79235951,108170.0,108160.0,0.07335238]
[1751237917426,0.79235951,108170.0,108160.0,0.05509593]
[1751237917427,1.24840633,108170.0,108160.0,0.05509593]
[1751237917621,1.37515451,108170.0,108160.0,0.05510593]
[1751237917822,1.1722109,108170.0,108160.0,0.05510593]
[1751237918022,1.37515451,108170.0,108160.0,0.05510593]
[1751237918430,1.1722109,108170.0,108160.0,0.05510593]
[1751237918728,1.37515451,108170.0,108160.0,0.05510593]
[1751237919027,1.37515451,108170.0,108160.0,0.20300093]
[1751237919529,1.37515451,108170.0,108160.0,0.05510593]
[1751237919919,1.37515451,108170.0,108160.0,0.20300093]
[1751237920126,1.12515451,108170.0,108160.0,0.20300093]
[1751237920629,1.12515451,108170.0,108160.0,0.05510593]
[1751237920828,0.147895,108160.0,108150.0,0.89187105]
[1751237921028,0.80593861,108160.0,108150.0,0.87691753]
[1751237921221,0.80593861,108160.0,108150.0,0.8218116]
[1751237921423,0.80593861,108160.0,108150.0,0.7848345]
[1751237922124,0.80593861,108160.0,108150.0,0.7858345]
[1751237922318,0.80593861,108160.0,108150.0,0.7868345]
[1751237922524,0.602995,108160.0,108150.0,0.7868345]
[1751237922729,0.80593861,108160.0,108150.0,0.7868345]
[1751237923630,0.80593861,108160.0,108150.0,0.7498574]
[1751237923928,0.80593861,108160.0,108150.0,0.1498974]
[1751237924124,0.80593861,108160.0,108150.0,0.7496574]
[1751237928931,0.602995,108160.0,108150.0,0.7496574]
[1751237929134,0.80593861,108160.0,108150.0,0.7496574]
[1751237933135,0.602995,108160.0,108150.0,0.7496574]
[1751237933337,0.80593861,108160.0,108150.0,0.7490174]
[1751237936142,0.80593861,108160.0,108150.0,0.76333294]
[1751237937442,0.82286816,108160.0,108150.0,0.76333294]
[1751237940838,0.61992455,108160.0,108150.0,0.76333294]
[1751237941043,0.82286816,108160.0,108150.0,0.76334424]
[1751237941246,0.82286816,108160.0,108150.0,0.60056]
[1751237941438,0.61992455,108160.0,108150.0,0.60056]
[1751237941633,0.82286816,108160.0,108150.0,0.002]
[1751237942338,1.59177601,108160.0,108150.0,0.002]
[1751237942742,1.79471962,108160.0,108150.0,0.002]
[1751237942942,1.77669601,108160.0,108150.0,0.002]
[1751237943140,1.77669601,108160.0,108130.0,0.4472307]
[1751237943141,0.1479224,108140.0,108130.0,0.4472307]
[1751237943441,0.72849431,108140.0,108130.0,0.07035567]
[1751237943650,0.82419431,108140.0,108130.0,0.01524974]
[1751237943850,0.82419431,108140.0,108130.0,0.02917152]
[1751237944048,2.00682631,108140.0,108120.0,0.05730564]
[1751237944244,0.97722332,108130.0,108120.0,0.01652842]
[1751237944444,1.54299104,108130.0,108120.0,0.00219971]
[1751237944643,0.94479104,108130.0,108120.0,0.00219971]
[1751237945455,0.92371971,108130.0,108120.0,0.00219971]
[1751237945654,0.94476809,108130.0,108120.0,0.00219971]
[1751237946347,0.94676809,108130.0,108120.0,0.00219971]
[1751237947446,0.94676809,108130.0,108120.0,0.15014941]
[1751237947646,0.77627971,108130.0,108120.0,0.15014941]
[1751237948446,0.8495414,108130.0,108120.0,0.15014941]
[1751237948847,0.8505414,108130.0,108120.0,0.15014941]
[1751237949247,0.8505414,108130.0,108120.0,0.00219971]
[1751237949440,0.8505414,108130.0,108120.0,0.15014941]
[1751237950043,0.8505414,108130.0,108120.0,0.00219971]
[1751237950753,0.64759779,108130.0,108120.0,0.00219971]
[1751237950948,0.8505414,108130.0,108120.0,0.00219971]
[1751237952356,0.1479634,108110.0,108100.0,0.21805976]
[1751237952550,0.35090701,108110.0,108100.0,0.25035976]
[1751237952750,0.1779634,108110.0,108100.0,0.28145976]
[1751237953045,0.1479634,108110.0,108100.0,0.84520337]
[1751237954657,0.1479634,108110.0,108100.0,0.84820337]
[1751237954853,0.1479634,108110.0,108100.0,0.85020337]
[1751237955159,0.63637472,108120.0,108110.0,0.1479634]
[1751237955457,0.63637472,108120.0,108110.0,1.38819218]
[1751237955458,0.27557472,108120.0,108110.0,1.38819218]
[1751237956159,0.27557472,108120.0,108110.0,0.80504785]
[1751237956358,0.27557472,108120.0,108110.0,1.40356785]
[1751237956560,0.20159412,108120.0,108110.0,1.40356785]
[1751237956757,0.20159412,108120.0,108110.0,1.40456785]
[1751237958455,0.20159412,108120.0,108110.0,1.44122618]
[1751237959052,0.20159412,108120.0,108110.0,1.23828257]
[1751237959257,0.20159412,108120.0,108110.0,0.84370618]
[1751237959557,0.20159412,108120.0,108110.0,1.44110618]
[1751237960361,0.20159412,108120.0,108110.0,1.23816257]
[1751237960561,0.20159412,108120.0,108110.0,1.08030618]
[1751237960762,0.20159412,108120.0,108110.0,1.06585051]
[1751237961365,0.20159412,108120.0,108110.0,0.8629069]
[1751237963465,0.40453773,108120.0,108110.0,0.0538435]
[1751237963663,0.85963773,108120.0,108110.0,0.6509235]
[1751237965061,0.85963773,108120.0,108110.0,0.61426517]
[1751237965262,0.85963773,108120.0,108110.0,0.6509235]
[1751237966164,0.85963773,108120.0,108110.0,0.61426517]
[1751237966464,0.85963773,108120.0,108110.0,0.01718517]
[1751237966764,0.85963773,108120.0,108110.0,0.61410517]
[1751237967269,0.85963773,108120.0,108110.0,0.6507635]
[1751237969569,0.20159412,108120.0,108110.0,1.00167051]
[1751237969765,0.20159412,108120.0,108110.0,1.12127644]
[1751237970872,0.20159412,108120.0,108110.0,0.91833283]
[1751237971169,0.20159412,108120.0,108110.0,1.12127644]
[1751237972468,0.20159412,108120.0,108110.0,1.08461811]
[1751237972769,0.20159412,108120.0,108110.0,1.44541811]
[1751237972770,0.16460592,108120.0,108110.0,1.44541811]
[1751237972965,0.2219152,108130.0,108120.0,0.1479497]
[1751237973166,0.4456093,108140.0,108130.0,0.1479361]
[1751237973167,0.2387283,108140.0,108130.0,0.1479361]
[1751237973470,0.2387283,108140.0,108130.0,1.04762202]
[1751237974570,0.2387283,108140.0,108130.0,0.45114202]
[1751237974770,0.2387283,108140.0,108130.0,1.04754202]
[1751237974972,0.2417283,108140.0,108130.0,1.04754202]
[1751237976272,0.2437283,108140.0,108130.0,0.84459841]
[1751237976469,0.2437283,108140.0,108130.0,1.04754202]
[1751237978074,0.2746283,108140.0,108130.0,1.04754202]
[1751237978474,0.2746283,108140.0,108130.0,1.01077971]
[1751237978775,0.2746283,108140.0,108130.0,0.8078361]
[1751237979075,0.2746283,108140.0,108130.0,1.01077971]
[1751237979275,0.3052283,108140.0,108130.0,0.84459841]
[1751237979774,0.3052283,108140.0,108130.0,0.8078361]
[1751237980275,0.3052283,108140.0,108130.0,0.84459841]
[1751237980774,0.3052283,108140.0,108130.0,1.04754202]
[1751237982074,0.3052283,108140.0,108130.0,1.10268549]
[1751237982577,0.3052283,108140.0,108130.0,0.89974188]
[1751237982774,0.3052283,108140.0,108130.0,0.89922188]
[1751237982976,0.50817191,108140.0,108130.0,0.12400578]
[1751237983178,0.50817191,108140.0,108130.0,0.83560188]
[1751237984878,0.3052283,108140.0,108130.0,0.83560188]
[1751237985178,0.50817191,108140.0,108130.0,0.83560188]
[1751237985878,0.3052283,108140.0,108130.0,0.83560188]
[1751237986078,0.50817191,108140.0,108130.0,1.03854549]
[1751237986273,0.3052283,108140.0,108130.0,0.83560188]
[1751237986679,0.50817191,108140.0,108130.0,0.83560188]
[1751237988480,0.50817191,108140.0,108130.0,0.23984188]
[1751237988679,0.50817191,108140.0,108130.0,0.83520188]
[1751237989482,0.3052283,108140.0,108130.0,0.83520188]
[1751237989682,0.50817191,108140.0,108130.0,0.83520188]
[1751237990085,0.50817191,108140.0,108130.0,0.86800188]
[1751237990280,0.49134361,108140.0,108130.0,0.86800188]
[1751237990890,0.2884,108140.0,108130.0,0.86800188]
[1751237992090,0.2269,108140.0,108130.0,0.86800188]
[1751237992290,0.2269,108140.0,108130.0,0.81285841]
[1751237992494,0.2269,108140.0,108130.0,1.04670202]
[1751237995198,0.42984361,108140.0,108130.0,0.84335841]
[1751237995398,0.49404361,108140.0,108130.0,0.84335841]
[1751237996198,0.2911,108140.0,108130.0,0.84335841]
[1751237998191,0.49404361,108140.0,108130.0,0.84335841]
[1751237998499,0.2911,108140.0,108130.0,0.84335841]
[1751237998699,0.49404361,108140.0,108130.0,0.84335841]
[1751237999297,0.152936,108140.0,108130.0,1.55430202]
[1751238000396,0.005,108140.0,108130.0,1.58210497]
[1751238000789,0.005,108140.0,108130.0,1.5269615]
[1751238000990,0.0633,108150.0,108140.0,0.2588444]
[1751238000991,0.1479102,108150.0,108140.0,0.2588444]
[1751238001189,0.7159352,108160.0,108150.0,0.1479087]
[1751238001395,0.1479083,108160.0,108150.0,1.30617231]
[1751238001701,0.147895,108160.0,108150.0,1.62819781]
[1751238001896,0.1858626,108170.0,108160.0,0.147895]
[1751238002202,0.1858626,108170.0,108160.0,0.45427856]
[1751238002503,0.1488814,108170.0,108160.0,0.242295]
[1751238002800,0.1488814,108170.0,108160.0,0.48197771]
[1751238003301,0.1488814,108170.0,108160.0,0.44523861]
[1751238004203,0.1538814,108170.0,108160.0,0.44523861]
[1751238004400,0.1538814,108170.0,108160.0,0.45468543]
[1751238004599,0.1538814,108170.0,108160.0,0.80603861]
[1751238004897,0.1598814,108170.0,108160.0,0.603095]
[1751238005097,0.1598814,108170.0,108160.0,0.80603861]
[1751238005304,0.012,108170.0,108160.0,0.80603861]
[1751238005601,0.1598813,108170.0,108160.0,0.603095]
[1751238005801,0.1598813,108170.0,108160.0,0.80603861]
[1751238006199,0.36282491,108170.0,108160.0,0.0613]
[1751238006404,0.53804341,108170.0,108160.0,0.742055]
[1751238006604,0.3660998,108170.0,108160.0,0.98173771]
[1751238006905,0.2611536,108170.0,108160.0,0.98173771]
[1751238007104,0.2611536,108170.0,108160.0,1.04453771]
[1751238007304,0.2611536,108170.0,108160.0,0.8415941]
[1751238007496,0.012,108170.0,108160.0,1.40533771]
[1751238007697,0.012,108170.0,108160.0,1.2023941]
[1751238007896,0.012,108170.0,108160.0,1.40533771]
[1751238008101,0.012,108170.0,108160.0,1.42370726]
[1751238011212,0.012,108170.0,108160.0,1.46031615]
[1751238011604,0.012,108170.0,108160.0,1.25737254]
[1751238011911,0.012,108170.0,108160.0,0.66321254]
[1751238012205,0.012,108170.0,108160.0,1.34910389]
[1751238012412,0.012,108170.0,108160.0,1.5520475]
[1751238012708,0.012,108170.0,108160.0,1.5520075]
[1751238012913,0.012,108170.0,108160.0,1.34906389]
[1751238013108,0.012,108170.0,108160.0,1.5520075]
[1751238013706,0.012,108170.0,108160.0,1.60711615]
[1751238013906,0.012,108170.0,108160.0,1.57050726]
[1751238014307,0.012,108170.0,108160.0,1.36756365]
[1751238014512,0.012,108170.0,108160.0,1.57050726]
[1751238014708,0.1598814,108170.0,108160.0,0.62660365]
[1751238014911,0.1598814,108170.0,108160.0,1.54276726]
[1751238015206,0.1598814,108170.0,108160.0,1.30920149]
[1751238015207,0.2226814,108170.0,108160.0,1.30920149]
[1751238015404,0.1057,108170.0,108160.0,1.5121451]
[1751238015710,0.1057,108170.0,108160.0,0.71163861]
[1751238016014,0.1057,108170.0,108160.0,1.45847861]
[1751238016513,0.1057,108170.0,108160.0,0.71163861]
[1751238016811,0.0748,108170.0,108160.0,1.45847861]
[1751238017111,0.012,108170.0,108160.0,1.52047861]
[1751238017301,0.3618,108200.0,108190.0,0.147854]
[1751238017508,0.3928,108200.0,108190.0,0.95087761]
[1751238017808,0.3928,108200.0,108190.0,1.04397761]
[1751238018006,0.001,108200.0,108190.0,1.04397761]
[1751238018209,0.001,108200.0,108190.0,1.40477761]
[1751238018407,0.011,108200.0,108190.0,1.40577761]
[1751238018603,0.024,108200.0,108190.0,1.203834]
[1751238018814,0.024,108200.0,108190.0,1.40677761]
[1751238019113,0.006,108200.0,108190.0,1.40477761]
[1751238019314,0.01,108200.0,108190.0,1.40477761]
[1751238020514,0.01,108200.0,108190.0,1.5896256]
[1751238020707,0.5096037,108230.0,108220.0,0.1478131]
[1751238020907,0.5732037,108230.0,108220.0,0.95231671]
[1751238022209,0.4304,108230.0,108220.0,0.95231671]
[1751238022604,0.4304,108230.0,108220.0,0.98531671]
[1751238022812,0.0696,108230.0,108220.0,0.98531671]
[1751238023013,0.0736,108230.0,108220.0,1.01701671]
[1751238023315,0.01,108230.0,108220.0,1.1748731]
[1751238023513,0.1577994,108230.0,108220.0,1.1431731]
[1751238023813,0.1478131,108220.0,108210.0,0.76885697]
[1751238024115,0.1478131,108220.0,108210.0,1.42672858]
[1751238024116,0.2113131,108220.0,108210.0,1.42672858]
[1751238024316,0.2113131,108220.0,108210.0,1.06592858]
[1751238024507,0.0635,108220.0,108210.0,1.39930786]
[1751238024707,0.3668,108230.0,108220.0,0.1478131]
[1751238024910,0.4248,108230.0,108220.0,0.17518812]
[1751238025115,0.4248,108230.0,108220.0,0.80163173]
[1751238025116,0.064,108230.0,108220.0,0.80163173]
[1751238025316,0.064,108230.0,108220.0,0.44083173]
[1751238025816,0.2117994,108230.0,108220.0,0.44083173]
[1751238026014,0.2127994,108230.0,108220.0,0.27444909]
[1751238026318,0.065,108230.0,108220.0,0.4773927]
[1751238026517,0.065,108230.0,108220.0,0.5075927]
[1751238026817,0.002,108230.0,108220.0,0.8683927]
[1751238027016,0.006,108230.0,108220.0,0.69291552]
[1751238027315,0.006,108230.0,108220.0,0.84101768]
[1751238027511,0.006,108230.0,108220.0,0.66541836]
[1751238027717,0.1537994,108230.0,108220.0,0.27291836]
[1751238027911,0.2172994,108230.0,108220.0,1.25618197]
[1751238028313,0.2172994,108230.0,108220.0,1.05323836]
[1751238028516,0.0695,108230.0,108220.0,1.22883768]
[1751238029112,0.0695,108230.0,108220.0,1.05699407]
[1751238029520,0.0695,108230.0,108220.0,0.27667407]
[1751238029815,0.0695,108230.0,108220.0,1.31473913]
[1751238030111,0.0695,108230.0,108220.0,1.25989768]
[1751238030317,0.0695,108230.0,108220.0,1.28722222]
[1751238030715,0.006,108230.0,108220.0,1.28722222]
[1751238031213,0.006,108230.0,108220.0,1.25066125]
[1751238032020,0.006,108230.0,108220.0,1.04771764]
[1751238032219,0.006,108230.0,108220.0,1.25066125]
[1751238032721,0.006,108230.0,108220.0,1.04771764]
[1751238032919,0.006,108230.0,108220.0,1.25066125]
[1751238033315,0.0674,108230.0,108220.0,0.47038125]
[1751238033515,0.0674,108230.0,108220.0,1.26144222]
[1751238034621,0.0674,108230.0,108220.0,1.29324222]
[1751238035319,0.006,108230.0,108220.0,1.29324222]
[1751238035518,0.006,108230.0,108220.0,1.09029861]
[1751238035720,0.006,108230.0,108220.0,1.29324222]
[1751238035917,0.006,108230.0,108220.0,1.09029861]
[1751238036121,0.006,108230.0,108220.0,1.29324222]
[1751238039025,0.006,108230.0,108220.0,1.21120222]
[1751238039223,0.1016,108230.0,108220.0,1.21120222]
[1751238039433,0.0707,108230.0,108220.0,1.21120222]
[1751238039725,0.0707,108230.0,108220.0,1.27480222]
[1751238040327,0.0707,108230.0,108220.0,1.24747768]
[1751238041326,0.006,108230.0,108220.0,1.24747768]
[1751238041627,0.006,108230.0,108220.0,1.18387768]
[1751238041829,0.0678,108230.0,108220.0,0.38731768]
[1751238042025,0.0678,108230.0,108220.0,1.18647768]
[1751238042230,0.0678,108230.0,108220.0,0.98353407]
[1751238042430,0.0678,108230.0,108220.0,0.38731768]
[1751238042632,0.0678,108230.0,108220.0,1.18667768]
[1751238042833,0.0678,108230.0,108220.0,0.55403768]
[1751238043034,0.0678,108230.0,108220.0,1.18643768]
[1751238043729,0.0678,108230.0,108220.0,0.18437407]
[1751238044029,0.5763994,108230.0,108220.0,0.98349407]
[1751238044333,0.5763994,108230.0,108220.0,1.18643768]
[1751238044528,0.4286,108230.0,108220.0,1.24127913]
[1751238044731,0.5763994,108230.0,108220.0,1.01086631]
[1751238045028,0.5763994,108230.0,108220.0,1.21380992]
[1751238045231,0.5763994,108230.0,108220.0,1.18643768]
[1751238045435,0.5763994,108230.0,108220.0,1.24127913]
[1751238045735,0.5763994,108230.0,108220.0,1.02167768]
[1751238045931,0.4286,108230.0,108220.0,1.02167768]
[1751238046123,0.4286,108230.0,108220.0,0.81873407]
[1751238046330,0.4286,108230.0,108220.0,1.07651913]
[1751238046730,0.5763994,108230.0,108220.0,1.07651913]
[1751238047137,0.5763994,108230.0,108220.0,0.87357552]
[1751238047534,0.5763994,108230.0,108220.0,1.07651913]
[1751238047733,0.4286,108230.0,108220.0,1.07651913]
[1751238048141,0.5763994,108230.0,108220.0,0.87357552]
[1751238048441,0.5763994,108230.0,108220.0,1.03995816]
[1751238048629,0.4286,108230.0,108220.0,1.03995816]
[1751238049027,0.5763994,108230.0,108220.0,0.83701455]
[1751238049241,0.4286,108230.0,108220.0,1.03995816]
[1751238050131,0.4286,108230.0,108220.0,0.83701455]
[1751238050439,0.7958608,108230.0,108220.0,0.83701455]
[1751238050632,0.59291719,108230.0,108220.0,1.03995816]
[1751238051038,0.59291719,108230.0,108220.0,0.83701455]
[1751238051537,0.59291719,108230.0,108220.0,0.7821731]
[1751238051739,0.59291719,108230.0,108220.0,0.83709952]
[1751238052035,1.1566608,108230.0,108220.0,0.03661778]
[1751238052241,1.1566608,108230.0,108220.0,0.67017778]
[1751238052739,1.1566608,108230.0,108220.0,0.81799088]
[1751238052927,0.95371719,108230.0,108220.0,0.81799088]
[1751238053133,1.1566608,108230.0,108220.0,0.8088659]
[1751238054139,1.1566608,108230.0,108220.0,0.6610528]
[1751238054331,1.1566608,108230.0,108220.0,0.8088659]
[1751238054332,0.95371719,108230.0,108220.0,0.8088659]
[1751238054536,1.1566608,108230.0,108220.0,0.8088659]
[1751238054937,0.95371719,108230.0,108220.0,0.8088659]
[1751238055138,0.95371719,108230.0,108220.0,0.6610528]
[1751238055440,1.1566608,108230.0,108220.0,0.6610528]
[1751238056041,1.1566608,108230.0,108220.0,0.1753058]
[1751238056234,1.1566608,108230.0,108220.0,0.8103858]
[1751238057241,1.1566608,108230.0,108220.0,0.6625728]
[1751238057441,0.95371719,108230.0,108220.0,0.6625728]
[1751238057633,1.1566608,108230.0,108220.0,0.6625728]
[1751238059342,0.95371719,108230.0,108220.0,0.6625728]
[1751238059642,1.1566608,108230.0,108220.0,0.6625728]
[1751238060350,0.95371719,108230.0,108220.0,0.6625728]
[1751238060643,1.1566608,108230.0,108220.0,0.6625728]
[1751238061245,0.95371719,108230.0,108220.0,0.8103859]
[1751238061646,1.1566608,108230.0,108220.0,0.8103859]
[1751238062041,0.95371719,108230.0,108220.0,0.6625728]
[1751238062248,1.1566608,108230.0,108220.0,0.63508]
[1751238062649,0.95371719,108230.0,108220.0,0.63508]
[1751238062845,1.1566608,108230.0,108220.0,0.63508]
[1751238063550,0.1478131,108220.0,108210.0,0.21193588]
[1751238063747,0.80535671,108220.0,108210.0,0.69727058]
[1751238063943,0.80535671,108220.0,108210.0,0.06411058]
[1751238064342,0.80535671,108220.0,108210.0,0.0274928]
[1751238064549,0.1478267,108210.0,108200.0,0.7260242]
[1751238064847,0.99342633,108210.0,108200.0,0.03661778]
[1751238065043,1.17825833,108210.0,108200.0,0.03661778]
[1751238065250,1.17825833,108210.0,108200.0,0.98542401]
[1751238065251,0.22673911,108210.0,108200.0,0.98542401]
[1751238065742,0.16553911,108210.0,108200.0,1.14166821]
[1751238065951,0.01771241,108210.0,108200.0,1.14166821]
[1751238066149,0.01771241,108210.0,108200.0,1.46585043]
[1751238066549,0.01771241,108210.0,108200.0,1.66879404]
[1751238067253,0.01771241,108210.0,108200.0,1.57764401]
[1751238069154,0.01771241,108210.0,108200.0,0.77628401]
[1751238069155,0.16553911,108210.0,108200.0,0.77628401]
[1751238069356,0.16553911,108210.0,108200.0,1.65491639]
[1751238070758,0.16553911,108210.0,108200.0,1.63649264]
[1751238072558,0.01771241,108210.0,108200.0,1.63649264]
[1751238072752,0.01771241,108210.0,108200.0,1.43354903]
[1751238072953,0.01771241,108210.0,108200.0,1.63649264]
[1751238073256,0.01771241,108210.0,108200.0,1.58156401]
[1751238073754,0.01771241,108210.0,108200.0,1.65491639]
[1751238074848,0.16553911,108210.0,108200.0,1.45197278]
[1751238075053,0.52633911,108210.0,108200.0,1.12199639]
[1751238075247,0.52633911,108210.0,108200.0,1.10360063]
[1751238075453,0.55903911,108210.0,108200.0,0.90001702]
[1751238075654,0.58973911,108210.0,108200.0,0.90001702]
[1751238075855,0.5730267,108210.0,108200.0,0.8127004]
[1751238076350,0.5730267,108210.0,108200.0,0.88605278]
[1751238076558,0.5730267,108210.0,108200.0,0.8127004]
[1751238076860,0.5730267,108210.0,108200.0,0.88605278]
[1751238077061,0.5730267,108210.0,108200.0,1.01564401]
[1751238077360,0.5730267,108210.0,108200.0,1.08899639]
[1751238079264,0.5730267,108210.0,108200.0,1.12189639]
[1751238079463,0.5730267,108210.0,108200.0,0.91895278]
[1751238079666,0.2122267,108210.0,108200.0,1.12189639]
[1751238080161,0.1488267,108210.0,108200.0,1.12189639]
[1751238081063,0.001,108210.0,108200.0,1.12189639]
[1751238081263,0.1488267,108210.0,108200.0,0.91895278]
[1751238081459,0.001,108210.0,108200.0,1.48269639]
[1751238081660,0.1488267,108210.0,108200.0,1.21207278]
[1751238081862,0.001,108210.0,108200.0,1.47911639]
[1751238082671,0.001,108210.0,108200.0,1.27617278]
[1751238083067,0.001,108210.0,108200.0,1.47911639]
[1751238083371,0.1488267,108210.0,108200.0,1.27617278]
[1751238083569,0.1488267,108210.0,108200.0,1.47911639]
[1751238083764,0.1488267,108210.0,108200.0,1.27617278]
[1751238084067,0.1488267,108210.0,108200.0,1.11831639]
[1751238084670,0.001,108210.0,108200.0,1.11831639]
[1751238084971,0.1488267,108210.0,108200.0,1.11831639]
[1751238085172,0.1812267,108210.0,108200.0,1.04496401]
[1751238085470,0.1812267,108210.0,108200.0,1.11831639]
[1751238085968,0.1812267,108210.0,108200.0,0.91537278]
[1751238086167,0.1812267,108210.0,108200.0,1.11831639]
[1751238088270,0.0334,108210.0,108200.0,1.11831639]
[1751238089072,0.001,108210.0,108200.0,1.11831639]
[1751238089573,0.001,108210.0,108200.0,0.91537278]
[1751238089774,0.001,108210.0,108200.0,1.11831639]
[1751238090174,0.001,108210.0,108200.0,0.91537278]
[1751238090363,0.001,108210.0,108200.0,1.11831639]
[1751238092076,0.001,108210.0,108200.0,1.47911639]
[1751238095672,0.0664,108210.0,108200.0,1.47911639]
[1751238095974,0.0664,108210.0,108200.0,1.44691639]
[1751238096465,0.2142267,108210.0,108200.0,0.81683639]
[1751238096665,0.2142267,108210.0,108200.0,1.45419639]
[1751238098475,0.2142267,108210.0,108200.0,1.25125278]
[1751238098670,0.2142267,108210.0,108200.0,1.45419639]
[1751238099069,0.2142267,108210.0,108200.0,1.42133639]
[1751238099270,0.2443267,108210.0,108200.0,1.42133639]
[1751238101373,0.0664,108210.0,108200.0,1.4030635]
[1751238101571,0.001,108210.0,108200.0,1.4690635]
[1751238102272,0.1488267,108210.0,108200.0,1.26611989]
[1751238102474,0.1488267,108210.0,108200.0,1.41398401]
[1751238102667,0.1789267,108210.0,108200.0,1.41398401]
[1751238103174,0.2110267,108210.0,108200.0,1.41398401]
[1751238104478,0.0632,108210.0,108200.0,1.41398401]
[1751238104674,0.2110267,108210.0,108200.0,1.48742626]
[1751238106071,0.2110267,108210.0,108200.0,1.45442626]
[1751238106878,0.0632,108210.0,108200.0,1.45442626]
[1751238107173,0.2110267,108210.0,108200.0,1.45442626]
[1751238107372,0.0632,108210.0,108200.0,1.45442626]
[1751238107569,0.0632,108210.0,108200.0,1.48722626]
[1751238109274,0.001,108210.0,108200.0,1.48722626]
[1751238112782,0.001,108210.0,108200.0,1.65714626]
[1751238112975,0.001,108210.0,108200.0,1.86008987]
[1751238113175,0.6146139,108230.0,108220.0,0.1478131]
[1751238113484,0.6769139,108230.0,108220.0,0.83728227]
[1751238114378,0.6809139,108230.0,108220.0,0.83728227]
[1751238114776,0.6809139,108230.0,108220.0,1.04022588]
[1751238114981,0.6809139,108230.0,108220.0,0.83728227]
[1751238115181,0.6809139,108230.0,108220.0,1.04022588]
[1751238116382,0.6809139,108230.0,108220.0,0.83728227]
[1751238116784,0.6809139,108230.0,108220.0,1.07692418]
[1751238117184,0.6809139,108230.0,108220.0,0.87578057]
[1751238117882,0.88385751,108230.0,108220.0,0.87578057]
[1751238118692,0.6809139,108230.0,108220.0,0.87578057]
[1751238119187,0.6849139,108230.0,108220.0,0.87578057]
[1751238119785,0.88785751,108230.0,108220.0,0.09176747]
[1751238120088,0.88785751,108230.0,108220.0,0.6727783]
[1751238120289,0.6849139,108230.0,108220.0,0.8205914]
[1751238120485,0.88785751,108230.0,108220.0,0.8205914]
[1751238121480,0.6849139,108230.0,108220.0,0.8205914]
[1751238121685,0.88785751,108230.0,108220.0,0.87566057]
[1751238121888,0.88785751,108230.0,108220.0,0.8205914]
[1751238122288,0.88785751,108230.0,108220.0,0.87566057]
[1751238122490,0.6849139,108230.0,108220.0,0.89112231]
[1751238122690,0.6849139,108230.0,108220.0,1.09406592]
[1751238122886,0.6849139,108230.0,108220.0,0.89112231]
[1751238123281,0.6849139,108230.0,108220.0,1.09406592]
[1751238123789,0.88785751,108230.0,108220.0,0.89112231]
[1751238124089,0.6849139,108230.0,108220.0,0.89112231]
[1751238124788,0.88785751,108230.0,108220.0,0.84412231]
[1751238124989,0.6849139,108230.0,108220.0,0.84412231]
[1751238125886,0.6538139,108230.0,108220.0,1.07756592]
[1751238126089,0.6538139,108230.0,108220.0,1.10846592]
[1751238126593,0.6538139,108230.0,108220.0,1.14156592]
[1751238126992,0.6538139,108230.0,108220.0,0.90552231]
[1751238127892,0.6538139,108230.0,108220.0,1.10846592]
[1751238128593,0.6538139,108230.0,108220.0,0.87462231]
[1751238128793,0.85675751,108230.0,108220.0,0.84412231]
[1751238129295,0.6538139,108230.0,108220.0,0.84412231]
[1751238129593,0.85675751,108230.0,108220.0,0.84412231]
[1751238130196,0.6538139,108230.0,108220.0,0.84412231]
[1751238130493,0.6538139,108230.0,108220.0,1.04706592]
[1751238131389,0.6538139,108230.0,108220.0,0.84412231]
[1751238131390,0.6168618,108230.0,108220.0,0.84412231]
[1751238131589,0.6168618,108230.0,108220.0,1.11046592]
[1751238131790,0.5799119,108230.0,108220.0,1.11046592]
[1751238131991,0.5176119,108230.0,108220.0,1.11046592]
[1751238132896,0.009,108230.0,108220.0,1.28110592]
[1751238133093,0.009,108230.0,108220.0,1.64190592]
[1751238134793,0.009,108230.0,108220.0,1.65095726]
[1751238135200,0.009,108230.0,108220.0,1.66931365]
[1751238136305,0.01654831,108240.0,108230.0,0.1477994]
[1751238136502,0.01654831,108240.0,108230.0,0.65638083]
[1751238136700,0.01654831,108240.0,108230.0,0.85932444]
[1751238136995,0.5455162,108250.0,108240.0,0.1477858]
[1751238137205,0.5455162,108250.0,108240.0,0.89508205]
[1751238137499,0.5455162,108250.0,108240.0,1.09802566]
[1751238137804,0.5085731,108250.0,108240.0,1.09802566]
[1751238138496,0.5085731,108250.0,108240.0,1.12551542]
[1751238138695,0.5105731,108250.0,108240.0,1.12551542]
[1751238138898,0.5105731,108250.0,108240.0,0.92257181]
[1751238139098,0.5105731,108250.0,108240.0,1.12551542]
[1751238139302,0.5105731,108250.0,108240.0,1.07053399]
[1751238139504,0.5125731,108250.0,108240.0,1.07053399]
[1751238139702,0.5450731,108250.0,108240.0,1.07053399]
[1751238140504,0.5450731,108250.0,108240.0,1.09800179]
[1751238140913,0.5450731,108250.0,108240.0,0.86255818]
[1751238141108,0.77961671,108250.0,108240.0,0.83371818]
[1751238141621,0.5766731,108250.0,108240.0,0.83371818]
[1751238141809,0.77961671,108250.0,108240.0,0.83371818]
[1751238142009,0.5766731,108250.0,108240.0,0.83371818]
[1751238142211,0.77961671,108250.0,108240.0,0.78671818]
[1751238143117,0.5766731,108250.0,108240.0,0.78671818]
[1751238143311,0.0681,108250.0,108240.0,1.1926054]
[1751238143511,0.0681,108250.0,108240.0,1.20766514]
[1751238143512,0.0365,108250.0,108240.0,1.20766514]
[1751238143713,0.004,108250.0,108240.0,1.06732153]
[1751238144713,0.004,108250.0,108240.0,0.86437792]
[1751238145116,0.004,108250.0,108240.0,1.06732153]
[1751238145617,0.004,108250.0,108240.0,0.86437792]
[1751238145818,0.004,108250.0,108240.0,1.06732153]
[1751238146015,0.004,108250.0,108240.0,0.86437792]
[1751238146211,0.004,108250.0,108240.0,1.06732153]
[1751238146609,0.004,108250.0,108240.0,0.86437792]
[1751238146820,0.004,108250.0,108240.0,1.06732153]
[1751238147511,0.1517722,108250.0,108240.0,1.06732153]
[1751238148312,0.1517722,108250.0,108240.0,0.86437792]
[1751238148517,0.1517722,108250.0,108240.0,1.06732153]
[1751238149223,0.1517722,108250.0,108240.0,0.86437792]
[1751238149417,0.1517722,108250.0,108240.0,1.06732153]
[1751238149916,0.1517722,108250.0,108240.0,0.86437792]
[1751238150312,0.1841722,108250.0,108240.0,1.06732153]
[1751238150621,0.1841722,108250.0,108240.0,0.91935935]
[1751238150821,0.2143722,108250.0,108240.0,0.91935935]
[1751238151022,0.2143722,108250.0,108240.0,1.12230296]